bitfinex/quotes_BTCUSD_20220213
["timestamp","ask_amount","ask_price","bid_price","bid_amount"]
[1644794549802,0.059149,42292.0,42291.0,0.01]
[1644794550401,0.066001,42292.0,42291.0,0.01]
[1644794551451,0.066001,42292.0,42284.0,0.05]
[1644794551452,0.22045858,42286.0,42284.0,0.05]
[1644794551652,0.33876558,42286.0,42285.0,0.331887]
[1644794551850,0.38876558,42286.0,42282.0,0.08]
[1644794552050,0.38876558,42286.0,42285.0,0.05]
[1644794552249,0.32961258,42286.0,42285.0,0.331887]
[1644794552448,0.63728598,42286.0,42285.0,0.331887]
[1644794552649,0.63728598,42286.0,42285.0,0.381887]
[1644794552854,0.109154,42286.0,42285.0,0.381887]
[1644794553450,0.05,42286.0,42285.0,0.381887]
[1644794553849,0.30241443,42286.0,42285.0,0.381887]
[1644794554251,0.05,42286.0,42285.0,0.381887]
[1644794554516,0.06302137,42288.0,42286.0,0.331887]
[1644794554717,0.06302137,42288.0,42285.0,0.05]
[1644794554914,0.059152,42287.0,42283.0,0.00042132]
[1644794555114,0.236612,42287.0,42284.0,0.331887]
[1644794555314,0.54764115,42287.0,42284.0,0.381887]
[1644794555715,0.54764115,42287.0,42285.0,0.331887]
[1644794555917,0.54764115,42287.0,42286.0,0.331887]
[1644794556119,0.54764115,42287.0,42285.0,0.00019639]
[1644794556317,0.109152,42286.0,42284.0,0.33208339]
[1644794556519,0.109152,42286.0,42283.0,0.00061771]
[1644794556718,0.168305,42286.0,42284.0,0.331887]
[1644794556918,0.168305,42286.0,42283.0,0.00019639]
[1644794557118,0.168305,42286.0,42283.0,0.00042132]
[1644794557319,0.21132354,42285.0,42283.0,0.00061771]
[1644794557518,0.27047954,42285.0,42283.0,0.00042132]
[1644794558154,0.27047954,42285.0,42282.0,0.03019639]
[1644794558352,0.27047954,42285.0,42282.0,0.03062449]
[1644794558749,0.39411692,42285.0,42282.0,0.03062449]
[1644794558953,0.118322,42284.0,42282.0,0.03062449]
[1644794559150,0.059161,42283.0,42282.0,0.0304281]
[1644794559351,0.059161,42283.0,42282.0,0.361887]
[1644794559749,0.059161,42283.0,42282.0,0.411887]
[1644794560352,0.286645,42284.0,42282.0,0.29296394]
[1644794561652,0.286645,42284.0,42282.0,0.62485094]
[1644794562103,0.286645,42284.0,42283.0,0.331887]
[1644794562303,0.286645,42284.0,42282.0,0.62504733]
[1644794562501,0.286645,42284.0,42283.0,0.331887]
[1644794562701,0.286645,42284.0,42282.0,0.62504733]
[1644794562906,0.286645,42284.0,42282.0,0.62485094]
[1644794563603,0.35029949,42284.0,42282.0,0.08]
[1644794563805,2.22491436,42283.0,42282.0,0.03]
[1644794564202,2.22491436,42283.0,42282.0,0.025]
[1644794564605,0.059159,42283.0,42282.0,0.025]
[1644794565209,0.286645,42284.0,42282.0,0.356887]
[1644794566057,0.286645,42284.0,42282.0,0.025]
[1644794566253,0.345802,42284.0,42282.0,0.025]
[1644794566453,0.345802,42284.0,42282.0,0.075]
[1644794578704,0.295802,42284.0,42282.0,0.075]
[1644794578908,0.295802,42284.0,42283.0,0.3]
[1644794578909,0.118323,42284.0,42283.0,0.3]
[1644794579505,0.118323,42284.0,42282.0,0.40708331]
[1644794579704,0.118323,42284.0,42282.0,0.516032]
[1644794579904,0.118323,42284.0,42283.0,0.23261735]
[1644794580304,0.118323,42284.0,42282.0,0.45708331]
[1644794580505,0.118323,42284.0,42282.0,0.406887]
[1644794580506,0.168323,42284.0,42282.0,0.406887]
[1644794581255,0.22748,42284.0,42282.0,0.406887]
[1644794581661,0.168323,42284.0,42282.0,0.406887]
[1644794581858,0.168323,42284.0,42282.0,0.075]
[1644794582058,0.168323,42284.0,42283.0,0.331887]
[1644794582257,0.168323,42284.0,42282.0,0.07519631]
[1644794582559,0.168323,42284.0,42282.0,0.40708331]
[1644794582758,0.168323,42284.0,42282.0,0.406887]
[1644794583764,0.48134756,42284.0,42282.0,0.025]
[1644794583966,0.05,42283.0,42282.0,0.025]
[1644794584609,0.006852,42283.0,42282.0,0.025]
[1644794584808,0.09205392,42283.0,42282.0,0.025]
[1644794586012,0.059173,42282.0,42281.0,0.01019631]
[1644794586317,0.066025,42282.0,42281.0,0.01]
[1644794586512,0.61048181,42277.0,42276.0,0.00019631]
[1644794586717,0.66733381,42277.0,42275.0,0.04]
[1644794586912,0.006852,42276.0,42275.0,0.04]
[1644794587117,0.22323109,42276.0,42272.0,0.00019631]
[1644794587316,0.22323109,42276.0,42271.0,0.01]
[1644794587317,0.52323109,42276.0,42271.0,0.01]
[1644794587519,0.059188,42271.0,42261.0,0.01]
[1644794587715,0.413541,42270.0,42261.0,0.01]
[1644794587918,0.19794516,42262.0,42261.0,0.01]
[1644794588170,0.20479716,42262.0,42261.0,0.01]
[1644794588363,0.25479716,42262.0,42261.0,0.01]
[1644794588561,0.84842022,42262.0,42261.0,0.01]
[1644794589964,0.39963155,42262.0,42261.0,0.01]
[1644794590265,0.40648355,42262.0,42261.0,0.01]
[1644794590466,0.05,42262.0,42261.0,0.01]
[1644794590866,0.109192,42263.0,42261.0,0.01]
[1644794591764,0.40287431,42263.0,42261.0,0.01]
[1644794592014,0.006852,42262.0,42261.0,0.01]
[1644794592210,0.40287431,42263.0,42261.0,0.01]
[1644794592409,0.68761643,42263.0,42261.0,0.01]
[1644794592609,0.68555997,42263.0,42261.0,0.01]
[1644794593608,0.40287431,42263.0,42261.0,0.01]
[1644794594809,0.109192,42263.0,42261.0,0.01]
[1644794595212,0.109192,42263.0,42262.0,0.05]
[1644794595413,0.109192,42263.0,42258.0,0.32293152]
[1644794595660,0.059192,42263.0,42259.0,0.331887]
[1644794595859,0.059192,42263.0,42258.0,0.05]
[1644794596262,0.059192,42263.0,42257.0,0.31250028]
[1644794596263,0.059192,42263.0,42257.0,0.36250028]
[1644794596860,0.059192,42263.0,42258.0,0.00044641]
[1644794597059,0.109192,42263.0,42258.0,0.00044641]
[1644794597858,0.109192,42263.0,42257.0,0.05]
[1644794598064,2.00104196,42259.0,42258.0,0.00044641]
[1644794598261,2.05104196,42259.0,42258.0,0.00044641]
[1644794599061,2.05104196,42259.0,42255.0,0.04]
[1644794599262,2.05104196,42259.0,42256.0,0.00044642]
[1644794599263,0.05,42259.0,42256.0,0.00044642]
[1644794599533,0.109195,42260.0,42257.0,0.331887]
[1644794599735,0.109195,42260.0,42259.0,0.25717363]
[1644794599939,0.059195,42260.0,42259.0,0.58906063]
[1644794600131,0.059195,42260.0,42259.0,0.381887]
[1644794600333,0.059195,42260.0,42259.0,0.05]
[1644794600533,0.059195,42260.0,42258.0,0.331887]
[1644794600933,0.059195,42260.0,42257.0,0.26619332]
[1644794601136,0.33867168,42260.0,42257.0,0.31619332]
[1644794601535,0.33867168,42260.0,42257.0,0.31574691]
[1644794603165,0.33867168,42260.0,42257.0,0.31594243]
[1644794604166,0.33867168,42260.0,42257.0,0.31574691]
[1644794604368,0.109195,42260.0,42257.0,0.31594243]
[1644794605272,0.109195,42260.0,42258.0,0.05918489]
[1644794606269,0.109195,42260.0,42259.0,0.331887]
[1644794606670,0.109195,42260.0,42259.0,0.381887]
[1644794606671,0.059195,42260.0,42259.0,0.381887]
[1644794607707,0.059195,42260.0,42259.0,0.05]
[1644794607914,0.109195,42260.0,42258.0,0.10938041]
[1644794608208,0.109195,42260.0,42259.0,0.331887]
[1644794608408,0.109195,42260.0,42258.0,0.10938041]
[1644794608610,0.109195,42260.0,42259.0,0.331887]
[1644794608810,0.109195,42260.0,42258.0,0.10938041]
[1644794609012,0.109195,42260.0,42259.0,0.331887]
[1644794609212,0.109195,42260.0,42258.0,0.10938041]
[1644794609410,0.109195,42260.0,42259.0,0.331887]
[1644794609610,0.109195,42260.0,42258.0,0.10938041]
[1644794609809,0.109195,42260.0,42259.0,0.331887]
[1644794610010,0.10879279,42260.0,42258.0,0.10938041]
[1644794610209,0.10879279,42260.0,42259.0,0.331887]
[1644794610415,0.10879279,42260.0,42258.0,0.10938041]
[1644794610682,0.10879279,42260.0,42258.0,0.10918489]
[1644794614509,0.159188,42264.0,42262.0,0.31054337]
[1644794614708,0.006852,42263.0,42262.0,0.31054337]
[1644794614911,0.00411475,42263.0,42262.0,0.36054337]
[1644794615106,0.159188,42264.0,42262.0,0.36054337]
[1644794615309,0.059188,42264.0,42262.0,0.36054337]
[1644794616307,0.05,42263.0,42262.0,0.36054337]
[1644794619974,0.35360962,42263.0,42262.0,0.36054337]
[1644794620170,0.35360962,42263.0,42262.0,0.31054337]
[1644794620372,0.50110962,42263.0,42262.0,0.31054337]
[1644794620572,0.61951262,42263.0,42258.0,0.00042133]
[1644794620772,0.61951262,42263.0,42252.0,0.14839112]
[1644794620976,0.61951262,42263.0,42258.0,0.00042125]
[1644794621173,0.06688619,42260.0,42258.0,0.00042125]
[1644794621372,0.29720821,42259.0,42258.0,0.00042125]
[1644794621573,0.58732031,42259.0,42258.0,0.00042125]
[1644794621773,0.73732031,42259.0,42258.0,0.00042125]
[1644794622014,0.85572031,42259.0,42256.0,0.00019552]
[1644794622216,0.85572031,42259.0,42255.0,0.04019552]
[1644794622416,0.059199,42257.0,42255.0,0.04019552]
[1644794622613,0.118398,42257.0,42255.0,0.04]
[1644794622812,0.168398,42257.0,42255.0,0.04]
[1644794624714,0.168098,42257.0,42255.0,0.04]
[1644794625114,0.163098,42257.0,42255.0,0.04]
[1644794627762,0.103899,42257.0,42255.0,0.04]
[1644794628364,0.0447,42257.0,42256.0,0.332309]
[1644794628766,0.1092,42258.0,42256.0,0.332309]
[1644794628964,0.1092,42258.0,42257.0,0.332309]
[1644794629163,0.1092,42258.0,42257.0,0.55064592]
[1644794629422,0.1092,42258.0,42257.0,0.21833692]
[1644794631713,0.1092,42258.0,42257.0,0.21333692]
[1644794633162,0.1092,42258.0,42256.0,0.05]
[1644794633361,0.1092,42258.0,42255.0,0.09038372]
[1644794633968,0.1092,42258.0,42255.0,0.09]
[1644794634167,0.1092,42258.0,42255.0,0.288356]
[1644794634366,0.168395,42258.0,42255.0,0.288356]
[1644794634569,0.168395,42258.0,42255.0,0.09]
[1644794635968,0.168395,42258.0,42255.0,0.09019459]
[1644794638514,0.168395,42258.0,42255.0,0.11019459]
[1644794641381,0.168395,42258.0,42255.0,0.11]
[1644794641580,0.168395,42258.0,42255.0,0.11019459]
[1644794642583,0.168395,42258.0,42255.0,0.11]
[1644794642784,0.168395,42258.0,42255.0,0.11019459]
[1644794643684,0.168395,42258.0,42255.0,0.11]
[1644794643885,0.168395,42258.0,42255.0,0.11019459]
[1644794644185,0.118409,42257.0,42255.0,0.06019459]
[1644794644429,0.118409,42257.0,42255.0,0.06]
[1644794644430,0.38214367,42256.0,42255.0,0.06]
[1644794644631,0.38214367,42256.0,42247.0,0.0011]
[1644794644826,0.05,42255.0,42253.0,0.00057734]
[1644794645026,0.36338372,42254.0,42253.0,0.00057734]
[1644794645224,0.41060669,42253.0,42247.0,0.00263117]
[1644794645425,0.2351404,42249.0,42247.0,0.00263117]
[1644794645725,0.49580947,42249.0,42247.0,0.00263117]
[1644794645924,0.64580947,42249.0,42247.0,0.0011]
[1644794646326,0.9273703,42249.0,42247.0,0.0011]
[1644794646526,0.9865843,42249.0,42247.0,0.0011]
[1644794646826,1.1479106,42249.0,42247.0,0.0011]
[1644794647227,1.49596803,42249.0,42247.0,0.0011]
[1644794647428,0.05922,42248.0,42242.0,0.0011]
[1644794647626,0.17766,42248.0,42242.0,0.0011]
[1644794647827,0.3982053,42248.0,42242.0,0.0011]
[1644794648263,0.08474545,42246.0,42242.0,0.0011]
[1644794648661,0.13474545,42246.0,42242.0,0.0011]
[1644794649066,0.3076757,42245.0,42242.0,0.0011]
[1644794649365,0.5736247,42245.0,42242.0,0.0011]
[1644794649569,0.55519053,42245.0,42242.0,0.0011]
[1644794649762,0.55519053,42245.0,42242.0,0.00154563]
[1644794649968,0.71651683,42245.0,42242.0,0.00154563]
[1644794650163,0.55519053,42245.0,42242.0,0.00154563]
[1644794650364,0.61441653,42245.0,42242.0,0.00154563]
[1644794650567,0.77574283,42245.0,42242.0,0.00154563]
[1644794650866,0.77574283,42245.0,42242.0,0.0011]
[1644794652911,0.4865013,42245.0,42242.0,0.0011]
[1644794653312,0.35800143,42244.0,42242.0,0.0011]
[1644794653513,0.62776508,42243.0,42241.0,0.01006926]
[1644794653714,0.28602877,42242.0,42241.0,0.01006926]
[1644794653912,0.33352877,42242.0,42240.0,0.0011]
[1644794654114,0.28429203,42241.0,42240.0,0.0011]
[1644794654316,0.33179203,42241.0,42240.0,0.0011]
[1644794654515,0.39101903,42241.0,42240.0,0.0011]
[1644794654917,0.106727,42241.0,42240.0,0.0011]
[1644794655118,0.168452,42242.0,42240.0,0.333409]
[1644794655320,0.168452,42242.0,42241.0,0.32018099]
[1644794655763,0.168452,42242.0,42241.0,0.37018099]
[1644794657165,0.109227,42242.0,42241.0,0.37018099]
[1644794657564,0.059227,42242.0,42241.0,0.37018099]
[1644794665669,0.41341028,42242.0,42237.0,0.0022]
[1644794665869,0.24193567,42241.0,42237.0,0.0022]
[1644794666069,0.0475,42240.0,42227.0,0.3852]
[1644794666270,0.165972,42240.0,42227.0,0.3852]
[1644794666669,0.54704303,42232.0,42227.0,0.3852]
[1644794666918,0.54704303,42232.0,42226.0,0.9732]
[1644794666919,0.54704303,42232.0,42223.0,0.67088551]
[1644794667110,0.59704303,42232.0,42225.0,0.02002413]
[1644794667310,0.65628403,42232.0,42225.0,0.02002413]
[1644794667914,0.94470362,42232.0,42225.0,0.02002413]
[1644794668312,0.65628403,42232.0,42225.0,0.02002413]
[1644794668716,0.75628403,42232.0,42231.0,0.00982177]
[1644794672265,0.80378403,42232.0,42231.0,0.00982177]
[1644794672465,0.059242,42230.0,42225.0,0.02002413]
[1644794672666,0.118484,42229.0,42225.0,0.02002413]
[1644794672874,0.059242,42229.0,42225.0,0.0035127]
[1644794673670,0.118483,42228.0,42225.0,0.0035127]
[1644794673869,0.118483,42228.0,42227.0,0.25066278]
[1644794673870,0.236967,42228.0,42227.0,0.25066278]
[1644794674171,0.236967,42228.0,42227.0,0.58297178]
[1644794674172,0.109242,42228.0,42227.0,0.58297178]
[1644794674419,0.059242,42228.0,42227.0,0.63297178]
[1644794675916,0.059242,42228.0,42227.0,0.30066278]
[1644794676320,0.059242,42228.0,42227.0,0.89877445]
[1644794677019,0.059217,42231.0,42227.0,0.99877445]
[1644794677219,0.059217,42231.0,42230.0,0.05]
[1644794677417,0.118437,42233.0,42231.0,0.332309]
[1644794677618,0.118437,42233.0,42232.0,0.30629092]
[1644794678023,0.059218,42234.0,42232.0,0.63859992]
[1644794678265,0.00013751,42235.0,42233.0,0.40692552]
[1644794678465,0.16140136,42247.0,42234.0,0.67161256]
[1644794678663,0.19069973,42251.0,42234.0,0.67161256]
[1644794678864,0.00044394,42235.0,42234.0,0.67161256]
[1644794679064,0.00044394,42235.0,42234.0,0.91922186]
[1644794679463,0.00044394,42235.0,42234.0,0.97842854]
[1644794679662,0.059213,42236.0,42234.0,1.02592854]
[1644794679862,0.059213,42236.0,42235.0,0.62287014]
[1644794682015,0.059213,42236.0,42234.0,0.09769359]
[1644794682218,0.059213,42236.0,42235.0,0.332309]
[1644794682614,0.059213,42236.0,42235.0,0.61015783]
[1644794682815,0.059213,42236.0,42235.0,0.27784883]
[1644794683018,0.059213,42236.0,42235.0,0.94641575]
[1644794683223,0.059213,42236.0,42234.0,0.15009359]
[1644794683416,0.059213,42236.0,42234.0,0.0999]
[1644794683619,0.118453,42235.0,42232.0,0.00019359]
[1644794683816,0.118453,42235.0,42231.0,0.27442189]
[1644794683817,0.168453,42235.0,42231.0,0.27461548]
[1644794684018,0.05,42235.0,42232.0,0.332309]
[1644794684218,0.05,42235.0,42232.0,0.00019359]
[1644794684417,0.05,42235.0,42231.0,0.48817793]
[1644794684617,0.05,42238.0,42231.0,0.27442189]
[1644794684821,0.05967194,42236.0,42231.0,0.27442189]
[1644794685017,0.05967194,42236.0,42231.0,0.32442189]
[1644794685317,0.05967194,42236.0,42231.0,0.61357698]
[1644794685765,0.05,42238.0,42236.0,0.11978781]
[1644794685960,0.5,42237.0,42236.0,0.16978781]
[1644794686364,0.659228,42237.0,42236.0,0.11978781]
[1644794687364,0.89383264,42237.0,42236.0,0.10326844]
[1644794687564,0.74279135,42237.0,42236.0,0.10326844]
[1644794688163,0.659228,42237.0,42236.0,0.10326844]
[1644794691622,0.659228,42237.0,42226.0,0.00019359]
[1644794691823,0.059245,42233.0,42226.0,0.00019359]
[1644794692023,0.059245,42231.0,42226.0,0.00019359]
[1644794692223,0.059245,42231.0,42225.0,0.0035127]
[1644794692224,0.20405204,42229.0,42225.0,0.0035127]
[1644794692525,0.25405204,42229.0,42225.0,0.0035127]
[1644794692722,0.25644009,42226.0,42225.0,0.0035127]
[1644794693172,0.36568609,42226.0,42225.0,0.0035127]
[1644794693372,0.46568609,42226.0,42225.0,0.0035127]
[1644794694173,0.51318609,42226.0,42225.0,0.0035127]
[1644794694772,1.01318609,42226.0,42225.0,0.0035127]
[1644794695172,1.17465414,42226.0,42225.0,0.0035127]
[1644794699216,0.1185236,42225.0,42223.0,0.00063705]
[1644794699416,0.606761,42224.0,42223.0,0.00044346]
[1644794699715,0.656761,42224.0,42223.0,0.00063705]
[1644794699915,0.756761,42224.0,42223.0,0.00063705]
[1644794700117,0.756761,42224.0,42223.0,0.00019359]
[1644794700317,0.91822905,42224.0,42222.0,0.03019359]
[1644794700521,1.03674805,42224.0,42222.0,0.03019359]
[1644794700763,1.03674805,42224.0,42222.0,0.02736236]
[1644794703467,0.77998705,42224.0,42223.0,0.332309]
[1644794703668,0.5,42224.0,42223.0,0.33250259]
[1644794704266,0.06687176,42234.0,42223.0,0.38250259]
[1644794704520,0.50571966,42232.0,42228.0,0.26540983]
[1644794704714,0.4071764,42232.0,42228.0,0.31540983]
[1644794705114,0.9071764,42232.0,42228.0,0.31540983]
[1644794705718,0.8479364,42232.0,42228.0,0.31540983]
[1644794705917,0.059243,42231.0,42228.0,0.31540983]
[1644794706118,0.168487,42231.0,42228.0,0.31540983]
[1644794706317,0.32994307,42231.0,42228.0,0.0504405]
[1644794706518,0.109244,42231.0,42228.0,0.0004405]
[1644794706723,0.27070007,42231.0,42228.0,0.0004405]
[1644794707317,0.059245,42230.0,42224.0,0.00019359]
[1644794707519,0.11849135,42230.0,42227.0,0.00044051]
[1644794707719,0.23698935,42230.0,42227.0,0.00044051]
[1644794708175,0.5,42228.0,42227.0,0.00044051]
[1644794708370,0.6,42228.0,42227.0,0.00044051]
[1644794708573,0.768514,42228.0,42223.0,0.00019359]
[1644794708772,0.39787791,42227.0,42225.0,0.00044052]
[1644794708972,0.39787791,42227.0,42225.0,0.00016991]
[1644794709172,0.65933398,42227.0,42225.0,0.00016991]
[1644794709773,0.0475,42226.0,42223.0,0.00019359]
[1644794709975,0.08919407,42224.0,42222.0,0.02736236]
[1644794710175,0.0475,42223.0,42222.0,0.02736236]
[1644794710978,0.5475,42223.0,42222.0,0.02736236]
[1644794711374,0.706756,42223.0,42222.0,0.01052741]
[1644794711775,0.86821207,42223.0,42222.0,0.01052741]
[1644794713513,0.80895607,42223.0,42222.0,0.01052741]
[1644794713715,0.6475,42223.0,42222.0,0.01052741]
[1644794714521,0.706752,42223.0,42222.0,0.01052741]
[1644794714718,0.6475,42223.0,42222.0,0.01052741]
[1644794715867,0.16591426,42222.0,42220.0,0.00044056]
[1644794716169,0.15676,42221.0,42220.0,0.00044056]
[1644794716567,0.10676,42221.0,42220.0,0.00044056]
[1644794716763,0.32026635,42221.0,42220.0,0.00044056]
[1644794716965,0.32026635,42221.0,42219.0,0.0011]
[1644794717169,0.059263,42220.0,42219.0,0.0011]
[1644794717364,0.106763,42220.0,42219.0,0.0011]
[1644794717964,0.656763,42220.0,42219.0,0.0011]
[1644794718164,1.06758229,42220.0,42219.0,0.0011]
[1644794718666,0.177801,42219.0,42215.0,0.0011]
[1644794718868,0.0975,42218.0,42215.0,0.0011]
[1644794719166,0.40490946,42217.0,42215.0,0.0011]
[1644794719419,0.35805623,42216.0,42215.0,0.0011]
[1644794719819,0.50805623,42216.0,42215.0,0.0011]
[1644794720013,1.00805623,42216.0,42215.0,0.0011]
[1644794720413,1.1695123,42216.0,42215.0,0.0011]
[1644794721013,1.3473423,42216.0,42215.0,0.0011]
[1644794721215,1.03678607,42216.0,42215.0,0.0011]
[1644794723870,1.01858607,42216.0,42215.0,0.0011]
[1644794724071,0.88678607,42216.0,42215.0,0.0011]
[1644794724274,0.82108607,42216.0,42215.0,0.0011]
[1644794724574,0.65963,42216.0,42215.0,0.0011]
[1644794725969,0.7188968,42216.0,42215.0,0.0011]
[1644794726171,0.7688968,42216.0,42215.0,0.0011]
[1644794726370,0.8688968,42216.0,42215.0,0.0011]
[1644794726571,1.03038675,42216.0,42215.0,0.0011]
[1644794729716,0.93038675,42216.0,42215.0,0.0011]
[1644794730976,0.93038675,42216.0,42215.0,0.00129128]
[1644794731380,1.03038675,42216.0,42215.0,0.00129128]
[1644794732378,0.93038675,42216.0,42215.0,0.00129128]
[1644794732976,0.7688968,42216.0,42215.0,0.00129128]
[1644794734176,0.93039092,42216.0,42215.0,0.00129128]
[1644794734423,0.7688968,42216.0,42215.0,0.00129128]
[1644794734617,0.93039245,42216.0,42215.0,0.00129128]
[1644794734817,0.7688968,42216.0,42215.0,0.00129128]
[1644794735018,0.93039245,42216.0,42215.0,0.00129128]
[1644794735522,1.03039245,42216.0,42215.0,0.00129128]
[1644794736117,1.03039245,42216.0,42213.0,0.00264005]
[1644794736118,1.03039245,42216.0,42213.0,0.00179128]
[1644794736321,0.16854,42215.0,42213.0,0.00100995]
[1644794736518,0.22780984,42215.0,42213.0,0.00100995]
[1644794736720,0.38930549,42215.0,42213.0,0.00100995]
[1644794736919,0.38930549,42215.0,42213.0,0.00120123]
[1644794737420,0.33242086,42214.0,42213.0,0.00076118]
[1644794738763,0.43242086,42214.0,42213.0,0.00076118]
[1644794738963,0.59392214,42214.0,42213.0,0.00076118]
[1644794740064,0.5932503,42214.0,42213.0,0.00076118]
[1644794741566,0.66550856,42214.0,42213.0,0.00076118]
[1644794746371,0.26150128,42214.0,42213.0,0.00076118]
[1644794746572,0.78004128,42215.0,42213.0,0.00076118]
[1644794746973,0.61854,42215.0,42213.0,0.00076118]
[1644794747174,0.5,42215.0,42214.0,0.332309]
[1644794747372,0.5,42215.0,42214.0,0.33250028]
[1644794747873,0.5,42215.0,42213.0,0.7344832]
[1644794748072,0.5,42215.0,42213.0,0.94306203]
[1644794748874,0.55927,42216.0,42215.0,0.03829286]
[1644794749075,0.05927,42216.0,42215.0,0.03829286]
[1644794749425,0.05927,42216.0,42215.0,0.32182475]
[1644794749617,0.05927,42216.0,42215.0,0.65413375]
[1644794749818,0.05927,42216.0,42215.0,0.65394247]
[1644794750317,0.05927,42216.0,42215.0,0.32163347]
[1644794750723,0.05927,42216.0,42215.0,0.03829286]
[1644794750924,0.118504,42219.0,42215.0,0.03829286]
[1644794750925,0.08312135,42219.0,42218.0,0.05]
[1644794751122,0.118514,42221.0,42217.0,0.0011]
[1644794751722,0.059257,42220.0,42218.0,0.059257]
[1644794751924,0.059257,42220.0,42218.0,0.00019127]
[1644794752120,0.059257,42220.0,42217.0,0.00129127]
[1644794752121,0.27074936,42220.0,42217.0,0.00129127]
[1644794752722,0.62027505,42220.0,42217.0,0.00129127]
[1644794752920,0.72027505,42220.0,42217.0,0.06055327]
[1644794753166,0.27074936,42220.0,42217.0,0.06055327]
[1644794753370,0.059257,42220.0,42217.0,0.26055327]
[1644794753770,0.059257,42220.0,42218.0,0.05]
[1644794757320,0.059257,42220.0,42217.0,0.00129127]
[1644794758321,0.059257,42220.0,42217.0,0.23411111]
[1644794758522,0.059257,42220.0,42218.0,0.26575408]
[1644794758723,0.059257,42220.0,42218.0,0.31575408]
[1644794758926,0.059257,42220.0,42218.0,0.05]
[1644794759324,0.059257,42220.0,42217.0,0.28411111]
[1644794759826,0.059257,42220.0,42217.0,0.28391984]
[1644794760124,0.059257,42220.0,42217.0,0.0511]
[1644794760324,0.059257,42220.0,42217.0,0.01058]
[1644794760524,0.059257,42220.0,42217.0,0.0011]
[1644794761172,0.11851814,42220.0,42217.0,0.0011]
[1644794761575,0.11852,42219.0,42217.0,0.0011]
[1644794762172,0.059259,42220.0,42217.0,0.46956853]
[1644794762373,0.059259,42220.0,42218.0,0.05]
[1644794764717,0.059259,42220.0,42217.0,0.0011]
[1644794765917,0.038739,42220.0,42217.0,0.0011]
[1644794766117,0.02994,42219.0,42217.0,0.060355]
[1644794767020,0.02994,42219.0,42218.0,0.70450365]
[1644794767319,0.00040199,42225.0,42218.0,0.75450365]
[1644794767519,0.16150128,42230.0,42224.0,0.2]
[1644794767719,0.00040199,42225.0,42224.0,0.2]
[1644794767916,0.00040199,42225.0,42224.0,0.25287357]
[1644794768174,0.05964599,42225.0,42224.0,0.25287357]
[1644794768373,0.00040199,42225.0,42224.0,0.30287357]
[1644794768573,0.24436862,42233.0,42224.0,0.30287357]
[1644794768774,0.00013861,42227.0,42224.0,0.36211957]
[1644794768975,0.00013861,42227.0,42224.0,0.30287357]
[1644794769175,0.059248,42226.0,42225.0,0.332309]
[1644794769379,0.00013861,42227.0,42224.0,0.5621125]
[1644794769575,0.00013861,42227.0,42225.0,0.6126963]
[1644794769874,0.43598924,42238.0,42229.0,0.07300414]
[1644794770076,0.26482307,42234.0,42230.0,0.27134314]
[1644794770276,0.38329807,42234.0,42230.0,0.05]
[1644794770475,0.37829807,42234.0,42230.0,0.05]
[1644794770674,0.47829807,42234.0,42228.0,0.25]
[1644794771278,0.0004025,42233.0,42231.0,0.25290701]
[1644794771474,0.0004025,42233.0,42231.0,0.30290701]
[1644794771930,0.0596395,42233.0,42231.0,0.19824801]
[1644794772121,0.059237,42233.0,42231.0,0.19366801]
[1644794773128,0.059237,42233.0,42231.0,0.24366801]
[1644794774926,0.059237,42233.0,42231.0,0.05]
[1644794775326,0.059237,42233.0,42225.0,0.1194]
[1644794775525,0.059237,42233.0,42222.0,0.27194915]
[1644794775784,0.059237,42233.0,42222.0,0.2810707]
[1644794775985,0.00013861,42230.0,42224.0,0.52388063]
[1644794776187,0.059243,42229.0,42224.0,0.46463363]
[1644794776384,0.059243,42229.0,42225.0,0.1915723]
[1644794776585,0.059243,42229.0,42226.0,0.08082522]
[1644794776785,0.059243,42229.0,42226.0,0.13082522]
[1644794777089,0.059243,42229.0,42226.0,0.19006722]
[1644794777684,0.059243,42229.0,42226.0,0.109242]
[1644794777885,0.059243,42229.0,42226.0,0.059242]
[1644794778085,0.059243,42229.0,42226.0,0.109242]
[1644794778885,0.059243,42229.0,42226.0,0.37557389]
[1644794779286,0.059243,42229.0,42226.0,0.109242]
[1644794780319,0.059243,42229.0,42226.0,0.05]
[1644794780520,0.059243,42229.0,42226.0,0.035]
[1644794780521,0.25946511,42227.0,42226.0,0.035]
[1644794780722,0.05925,42226.0,42221.0,0.26521469]
[1644794781422,0.05925,42226.0,42222.0,0.05925]
[1644794781623,0.05925,42226.0,42222.0,0.3283462]
[1644794781827,0.05925,42226.0,42222.0,0.2690962]
[1644794782023,0.32650936,42225.0,42217.0,0.1234]
[1644794782231,0.059255,42223.0,42217.0,0.1234]
[1644794782424,0.11851064,42223.0,42217.0,0.1234]
[1644794782622,0.11852104,42224.0,42217.0,0.0011]
[1644794782823,0.118517,42223.0,42217.0,0.0011]
[1644794783190,0.118517,42223.0,42219.0,0.33276562]
[1644794783490,0.059259,42222.0,42219.0,0.33276562]
[1644794783789,0.059259,42222.0,42219.0,0.44201462]
[1644794783990,0.059259,42222.0,42219.0,0.38276562]
[1644794784188,0.059259,42222.0,42219.0,0.05]
[1644794784390,0.059259,42222.0,42217.0,0.3204741]
[1644794784591,0.059259,42222.0,42218.0,0.05925]
[1644794784794,0.059259,42222.0,42219.0,0.32657265]
[1644794785191,0.059259,42222.0,42219.0,0.37657265]
[1644794785591,0.059259,42222.0,42220.0,0.25715612]
[1644794785795,0.059259,42222.0,42220.0,0.30715612]
[1644794786392,0.059259,42222.0,42220.0,0.5781633]
[1644794786594,0.26150128,42230.0,42221.0,0.59965909]
[1644794786595,0.1,42230.0,42221.0,0.59965909]
[1644794786929,0.00013863,42225.0,42221.0,0.26735009]
[1644794787122,0.00013863,42225.0,42223.0,0.059242]
[1644794787328,0.00013863,42225.0,42224.0,0.62836403]
[1644794787525,0.00013863,42225.0,42224.0,0.96803481]
[1644794787923,0.118475,42233.0,42224.0,0.96803481]
[1644794788124,0.00013863,42227.0,42225.0,0.332309]
[1644794788325,0.00013863,42227.0,42226.0,0.28719186]